lending/lending_fUSD_20250605
["ID","MTS","AMOUNT","RATE_DAILY","PERIOD"]
[364367146,1749082247551,-480.0,0.00030136,7]
[364367147,1749082247563,-2896.72,0.00030136,7]
[364367148,1749082247573,-480.0,0.00030136,7]
[364367149,1749082247583,-480.0,0.00030136,7]
[364367150,1749082247594,-349.84897876,0.00030136,7]
[364367151,1749082247604,-480.0,0.00030136,7]
[364367152,1749082247614,-480.0,0.00030136,7]
[364367153,1749082247624,-460.0,0.00030136,7]
[364367154,1749082247635,-648.51,0.00030136,7]
[364367155,1749082247646,-480.0,0.00030136,7]
[364367156,1749082247656,-750.0,0.00030136,7]
[364367157,1749082247667,-480.0,0.00030136,7]
[364367158,1749082247677,-6207.93,0.00030136,7]
[364367159,1749082247689,-480.0,0.00030136,7]
[364367160,1749082247700,-600.40319141,0.00030136,7]
[364367161,1749082247710,-849.04,0.00030136,7]
[364367162,1749082247721,-420.0,0.00030136,7]
[364367163,1749082247731,-480.0,0.00030136,7]
[364367164,1749082247745,-480.0,0.00030136,7]
[364367165,1749082247755,-656.41,0.00030136,7]
[364367166,1749082247766,-461.85832672,0.00030136,7]
[364367167,1749082247777,-480.0,0.00030136,7]
[364367168,1749082247787,-1135.69,0.00030136,7]
[364367169,1749082247797,-891.6,0.00030136,7]
[364367170,1749082247808,-241.60147374,0.00030136,7]
[364367171,1749082247820,-4050.48,0.00030136,7]
[364367172,1749082247830,-823.55,0.00030136,7]
[364367173,1749082247841,-480.0,0.00030136,7]
[364367174,1749082247851,-422.9036022,0.00030136,7]
[364367175,1749082247862,-480.0,0.00030136,7]
[364367176,1749082247872,-4395.2,0.00030136,7]
[364367177,1749082247883,-540.06,0.00030136,7]
[364367178,1749082247893,-480.0,0.00030136,7]
[364367179,1749082247903,-553.22,0.00030136,7]
[364367180,1749082247913,-1374.6,0.00030136,7]
[364367181,1749082247923,-480.0,0.00030136,7]
[364367182,1749082247935,-878.22,0.00030136,7]
[364367183,1749082247945,-480.0,0.00030136,7]
[364367184,1749082247955,-480.0,0.00030136,7]
[364367185,1749082247966,-480.0,0.00030136,7]
[364367186,1749082247976,-480.0,0.00030136,7]
[364367187,1749082247986,-480.0,0.00030136,7]
[364367188,1749082247996,-480.0,0.00030136,7]
[364367189,1749082248006,-480.0,0.00030136,7]
[364367190,1749082248017,-480.0,0.00030136,7]
[364367191,1749082248027,-2727.32,0.00030136,7]
[364367192,1749082248166,-480.0,0.00030136,7]
[364367193,1749082248177,-400.74408995,0.00030136,7]
[364367194,1749082248188,-480.0,0.00030136,7]
[364367195,1749082248198,-626.22,0.00030136,7]
[364367196,1749082248209,-779.41,0.00030136,7]
[364367197,1749082248219,-1103.79,0.00030136,7]
[364367198,1749082248228,-480.0,0.00030136,7]
[364367199,1749082248239,-1404.04,0.00030136,7]
[364367200,1749082248249,-480.0,0.00030136,7]
[364367201,1749082248258,-1884.22,0.00030136,7]
[364367202,1749082248268,-2372.39,0.00030136,7]
[364367203,1749082248278,-532.10325412,0.00030136,7]
[364367204,1749082248287,-307.73117844,0.00030136,7]
[364367205,1749082248297,-1381.19,0.00030136,7]
[364367206,1749082248307,-480.0,0.00030136,7]
[364367207,1749082248317,-480.0,0.00030136,7]
[364367208,1749082248327,-2162.52,0.00030136,7]
[364367209,1749082248337,-1579.26,0.00030136,7]
[364367210,1749082248347,-638.76,0.00030136,7]
[364367211,1749082248357,-480.0,0.00030136,7]
[364367212,1749082248367,-1693.47,0.00030136,7]
[364367213,1749082248380,-480.0,0.00030136,7]
[364367214,1749082248389,-740.07,0.00030136,7]
[364367215,1749082248399,-2930.2,0.00030136,7]
[364367216,1749082248409,-2930.2,0.00030136,7]
[364367217,1749082248419,-2930.2,0.00030136,7]
[364367218,1749082248429,-480.0,0.00030136,7]
[364367219,1749082248440,-946.41,0.00030136,7]
[364367220,1749082248450,-1614.52,0.00030136,7]
[364367221,1749082248460,-480.0,0.00030136,7]
[364367222,1749082248470,-480.0,0.00030136,7]
[364367223,1749082248480,-4523.62,0.00030136,7]
[364367224,1749082248490,-1109.82,0.00030136,7]
[364367225,1749082248500,-480.0,0.00030136,7]
[364367226,1749082248511,-480.0,0.00030136,7]
[364367227,1749082248520,-480.0,0.00030136,7]
[364367228,1749082248530,-480.0,0.00030136,7]
[364367229,1749082248540,-3172.75,0.00030136,7]
[364367230,1749082248550,-1236.76,0.00030136,7]
[364367231,1749082248559,-480.0,0.00030136,7]
[364367232,1749082248569,-1317.2,0.00030136,7]
[364367233,1749082248578,-480.0,0.00030136,7]
[364367234,1749082248588,-480.0,0.00030136,7]
[364367235,1749082248597,-2517.98,0.00030136,7]
[364367236,1749082248607,-480.0,0.00030136,7]
[364367237,1749082248616,-1748.98,0.00030136,7]
[364367238,1749082248626,-480.0,0.00030136,7]
[364367239,1749082248636,-480.0,0.00030136,7]
[364367240,1749082248646,-480.0,0.00030136,7]
[364367241,1749082248656,-165.59215429,0.00030136,7]
[364367242,1749082248666,-480.0,0.00030136,7]
[364367243,1749082248678,-480.0,0.00030136,7]
[364367244,1749082248689,-480.0,0.00030136,7]
[364367245,1749082248699,-500.9377109,0.00030136,7]
[364367246,1749082248709,-806.37,0.00030136,7]
[364367247,1749082248720,-5118.58,0.00030136,7]
[364367248,1749082248730,-480.0,0.00030136,7]
[364367249,1749082248743,-480.0,0.00030136,7]
[364367250,1749082248753,-2402.33,0.00030136,7]
[364367251,1749082248763,-480.0,0.00030136,7]
[364367252,1749082248773,-1000.0,0.00030136,90]
[364367253,1749082248785,-1124.21,0.00030136,7]
[364367254,1749082248794,-480.0,0.00030136,7]
[364367255,1749082248804,-480.0,0.00030136,7]
[364367256,1749082248814,-234.86916709,0.00030136,7]
[364367257,1749082248825,-2400.84,0.00030136,7]
[364367258,1749082248835,-480.0,0.00030136,7]
[364367259,1749082248844,-480.0,0.00030136,7]
[364367260,1749082248854,-3013.69,0.00030136,7]
[364367261,1749082248863,-480.0,0.00030136,7]
[364367262,1749082248873,-480.0,0.00030136,7]
[364367263,1749082248883,-7917.08,0.00030136,7]
[364367264,1749082248893,-480.0,0.00030136,7]
[364367265,1749082248903,-1183.66,0.00030136,7]
[364367266,1749082248913,-480.0,0.00030136,7]
[364367267,1749082248923,-500.0,0.00030136,7]
[364367268,1749082248932,-500.0,0.00030136,7]
[364367269,1749082248943,-480.0,0.00030136,7]
[364367270,1749082248953,-480.0,0.00030136,7]
[364367271,1749082248963,-500.0,0.00030136,7]
[364367272,1749082248973,-1573.83,0.00030136,7]
[364367273,1749082248982,-480.0,0.00030136,7]
[364367274,1749082248992,-480.0,0.00030136,7]
[364367275,1749082249002,-480.0,0.00030136,7]
[364367276,1749082249012,-616.49,0.00030136,7]
[364367277,1749082249021,-480.0,0.00030136,7]
[364367278,1749082249031,-723.76,0.00030136,7]
[364367279,1749082249040,-480.0,0.00030136,7]
[364367280,1749082249049,-480.0,0.00030136,7]
[364367281,1749082249059,-1350.23,0.00030136,7]
[364367282,1749082249068,-480.0,0.00030136,7]
[364367283,1749082249077,-1763.85,0.00030136,7]
[364367284,1749082249086,-480.0,0.00030136,7]
[364367285,1749082249096,-1392.78,0.00030136,7]
[364367286,1749082249105,-430.77303348,0.00030136,7]
[364367287,1749082249115,-7939.98,0.00030136,7]
[364367288,1749082249124,-1051.93,0.00030136,7]
[364367289,1749082249134,-4789.59,0.00030136,7]
[364367290,1749082249143,-550.79,0.00030136,7]
[364367291,1749082249153,-480.0,0.00030136,7]
[364367292,1749082249162,-771.66,0.00030136,7]
[364367293,1749082249172,-480.0,0.00030136,7]
[364367294,1749082249182,-687.32,0.00030136,7]
[364367295,1749082249192,-480.0,0.00030136,7]
[364367296,1749082249202,-799.45,0.00030136,7]
[364367297,1749082249213,-1358.43,0.00030136,7]
[364367298,1749082249223,-480.0,0.00030136,7]
[364367299,1749082249233,-480.0,0.00030136,7]
[364367300,1749082249243,-695.97,0.00030136,7]
[364367301,1749082249254,-480.0,0.00030136,7]
[364367302,1749082249264,-26647.63,0.00030136,7]
[364367303,1749082249274,-480.0,0.00030136,7]
[364367304,1749082249284,-480.0,0.00030136,7]
[364367305,1749082249294,-741.48,0.00030136,7]
[364367306,1749082249304,-796.12,0.00030136,7]
[364367307,1749082249314,-480.0,0.00030136,7]
[364367308,1749082249324,-480.0,0.00030136,7]
[364367309,1749082249338,-805.96,0.00030136,7]
[364367310,1749082249348,-480.0,0.00030136,7]
[364367311,1749082249358,-480.0,0.00030136,7]
[364367312,1749082249368,-480.0,0.00030136,7]
[364367313,1749082249378,-22156.16,0.00030136,7]
[364367314,1749082249388,-480.0,0.00030136,7]
[364367315,1749082249398,-1159.0,0.00030136,7]
[364367316,1749082249409,-1155.0,0.00030136,7]
[364367317,1749082249419,-480.0,0.00030136,7]
[364367318,1749082249429,-1164.92,0.00030136,7]
[364367319,1749082249440,-480.0,0.00030136,7]
[364367320,1749082249450,-686.92,0.00030136,7]
[364367321,1749082249460,-480.0,0.00030136,7]
[364367322,1749082249470,-4720.24,0.00030136,7]
[364367323,1749082249480,-3109.4,0.00030136,7]
[364367324,1749082249490,-480.0,0.00030136,7]
[364367325,1749082249500,-564.82236884,0.00030136,7]
[364367326,1749082249509,-4760.67,0.00030136,7]
[364367327,1749082249519,-3987.4,0.00030136,7]
[364367328,1749082249529,-106797.71,0.00030136,7]
[364367329,1749082249539,-480.0,0.00030136,7]
[364367330,1749082249549,-480.0,0.00030136,7]
[364367331,1749082249559,-480.0,0.00030136,7]
[364367332,1749082249569,-480.0,0.00030136,7]
[364367333,1749082249580,-480.0,0.00030136,7]
[364367334,1749082249589,-480.0,0.00030136,7]
[364367335,1749082249599,-480.0,0.00030136,7]
[364367336,1749082249609,-857.66,0.00030136,7]
[364367337,1749082249619,-766.37,0.00030136,7]
[364367338,1749082249629,-480.0,0.00030136,7]
[364367339,1749082249638,-480.0,0.00030136,7]
[364367340,1749082249648,-480.0,0.00030136,7]
[364367341,1749082249658,-23436.3,0.00030136,7]
[364367342,1749082249668,-2526.74,0.00030136,7]
[364367343,1749082249677,-480.0,0.00030136,7]
[364367344,1749082249687,-1674.03,0.00030136,7]
[364367345,1749082249697,-1270.88,0.00030136,7]
[364367346,1749082249707,-480.0,0.00030136,7]
[364367347,1749082249716,-1284.08,0.00030136,7]
[364367348,1749082249725,-872.17,0.00030136,7]
[364367349,1749082249738,-1220.01,0.00030136,7]
[364367350,1749082249748,-480.0,0.00030136,7]
[364367351,1749082249758,-480.0,0.00030136,7]
[364367352,1749082249767,-480.0,0.00030136,7]
[364367353,1749082249779,-480.0,0.00030136,7]
[364367354,1749082249788,-427.51823982,0.00030136,7]
[364367355,1749082249797,-906.51,0.00030136,7]
[364367356,1749082249808,-1599.33,0.00030136,7]
[364367357,1749082249818,-1533.62,0.00030136,7]
[364367358,1749082249829,-480.0,0.00030136,7]
[364367359,1749082249838,-560.48,0.00030136,7]
[364367360,1749082249848,-748.01,0.00030136,7]
[364367361,1749082249857,-480.0,0.00030136,7]
[364367362,1749082249868,-496.74,0.00030136,7]
[364367363,1749082249878,-648.81,0.00030136,7]
[364367364,1749082249888,-2647.58,0.00030136,7]
[364367365,1749082249897,-421.96437608,0.00030136,7]
[364367366,1749082249907,-1401.32,0.00030136,7]
[364367367,1749082249916,-480.0,0.00030136,7]
[364367368,1749082249925,-480.0,0.00030136,7]
[364367369,1749082249935,-480.0,0.00030136,7]
[364367370,1749082249945,-836.87,0.00030136,7]
[364367371,1749082249954,-755.49,0.00030136,7]
[364367372,1749082249965,-480.0,0.00030136,7]
[364367373,1749082249974,-3143.21,0.00030136,7]
[364367374,1749082249984,-480.0,0.00030136,7]
[364367375,1749082249994,-480.0,0.00030136,7]
[364367376,1749082250003,-1995.83,0.00030136,7]
[364367377,1749082250013,-480.0,0.00030136,7]
[364367378,1749082250023,-3355.44,0.00030136,7]
[364367379,1749082250032,-480.0,0.00030136,7]
[364367380,1749082250042,-480.0,0.00030136,7]
[364367381,1749082250050,-528.35,0.00030136,7]
[364367382,1749082250060,-480.0,0.00030136,7]
[364367383,1749082250070,-480.0,0.00030136,7]
[364367384,1749082250080,-1028.08,0.00030136,7]
[364367385,1749082250089,-1421.23,0.00030136,7]
[364367386,1749082250099,-1711.38,0.00030136,7]
[364367387,1749082250108,-480.0,0.00030136,7]
[364367388,1749082250118,-5191.49,0.00030136,7]
[364367389,1749082250127,-480.0,0.00030136,7]
[364367390,1749082250136,-979.05,0.00030136,7]
[364367391,1749082250146,-480.0,0.00030136,7]
[364367392,1749082250159,-2177.2,0.00030136,7]
[364367393,1749082250172,-480.0,0.00030136,7]
[364367394,1749082250181,-480.0,0.00030136,7]
[364367395,1749082250191,-480.0,0.00030136,7]
[364367396,1749082250201,-480.0,0.00030136,7]
[364367397,1749082250211,-480.0,0.00030136,7]
[364367398,1749082250221,-480.0,0.00030136,7]
[364367399,1749082250230,-500.0,0.00030136,7]
[364367400,1749082250239,-480.0,0.00030136,7]
[364367401,1749082250249,-500.0,0.00030136,7]
[364367402,1749082250259,-3986.54,0.00030136,7]
[364367403,1749082250269,-500.0,0.00030136,7]
[364367404,1749082250279,-480.0,0.00030136,7]
[364367405,1749082250289,-480.0,0.00030136,7]
[364367406,1749082250299,-480.0,0.00030136,7]
[364367407,1749082250309,-1284.97,0.00030136,7]
[364367408,1749082250319,-480.0,0.00030136,7]
[364367409,1749082250329,-480.0,0.00030136,7]
[364367410,1749082250339,-1484.48,0.00030136,7]
[364367411,1749082250349,-480.0,0.00030136,7]
[364367412,1749082250359,-480.0,0.00030136,7]
[364367413,1749082250368,-480.0,0.00030136,7]
[364367414,1749082250377,-199.5496536,0.00030136,7]
[364367415,1749082250387,-3210.74,0.00030136,7]
[364367416,1749082250396,-8993.15,0.00030136,7]
[364367417,1749082250407,-2785.12,0.00030136,7]
[364367418,1749082250416,-500.0,0.00030136,2]
[364367419,1749082250426,-2375.5,0.00030136,7]
[364367420,1749082250435,-500.0,0.00030136,2]
[364367421,1749082250445,-360.0,0.00030136,2]
[364367422,1749082250456,-500.0,0.00030136,2]
[364367423,1749082250465,-430.68290621,0.00030136,7]
[364367424,1749082250475,-480.0,0.00030136,7]
[364367425,1749082250485,-1291.81,0.00030136,7]
[364367426,1749082250495,-480.0,0.00030136,7]
[364367427,1749082250504,-420.0,0.00030136,7]
[364367428,1749082250514,-480.0,0.00030136,7]
[364367429,1749082250524,-361.65243655,0.00030136,7]
[364367430,1749082250534,-4199.32,0.00030136,7]
[364367431,1749082250543,-480.0,0.00030136,7]
[364367432,1749082250553,-266.75811804,0.00030136,7]
[364367433,1749082250563,-480.0,0.00030136,7]
[364367434,1749082250572,-5133.76,0.00030136,7]
[364367435,1749082250582,-849.07,0.00030136,7]
[364367436,1749082250592,-322.24491377,0.00030136,7]
[364367437,1749082250605,-648.51,0.00030136,7]
[364367438,1749082250614,-480.0,0.00030136,7]
[364367439,1749082250624,-593.77,0.00030136,7]
[364367440,1749082250633,-1221.59,0.00030136,7]
[364367441,1749082250643,-480.0,0.00030136,7]
[364367442,1749082250653,-1221.59,0.00030136,7]
[364367443,1749082250662,-1643.66,0.00030136,7]
[364367444,1749082250671,-480.0,0.00030136,7]
[364367445,1749082250681,-1221.59,0.00030136,7]
[364367446,1749082250691,-480.0,0.00030136,2]
[364367447,1749082250700,-1221.59,0.00030136,7]
[364367448,1749082250710,-463.20768262,0.00030136,7]
[364367449,1749082250719,-1221.59,0.00030136,7]
[364367450,1749082250729,-658.17,0.00030136,7]
[364367451,1749082250741,-480.0,0.00030136,7]
[364367452,1749082250750,-480.0,0.00030136,7]
[364367453,1749082250760,-340.0,0.00030136,2]
[364367454,1749082250769,-1553.69,0.00030136,7]
[364367455,1749082250779,-500.0,0.00030136,7]
[364367456,1749082250788,-312.94189294,0.00030136,7]
[364367457,1749082250798,-480.0,0.00030136,7]
[364367458,1749082250808,-480.0,0.00030136,7]
[364367459,1749082250819,-480.0,0.00030136,3]
[364367460,1749082250830,-480.0,0.00030136,7]
[364367461,1749082250840,-1249.41,0.00030136,7]
[364367462,1749082250850,-480.0,0.00030136,7]
[364367463,1749082250861,-873.78,0.00030136,7]
[364367464,1749082250871,-2300.9,0.00030136,7]
[364367465,1749082250881,-480.0,0.00030136,7]
[364367466,1749082250890,-480.0,0.00030136,7]
[364367467,1749082250900,-3191.84,0.00030136,7]
[364367468,1749082250910,-480.0,0.00030136,7]
[364367469,1749082250920,-1138.54,0.00030136,7]
[364367470,1749082250929,-480.0,0.00030136,7]
[364367471,1749082250939,-480.0,0.00030136,7]
[364367472,1749082250948,-2272.97,0.00030136,7]
[364367473,1749082250957,-4070.8,0.00030136,7]
[364367474,1749082250967,-3997.43,0.00030136,7]
[364367475,1749082250977,-630.19,0.00030136,7]
[364367476,1749082250987,-480.0,0.00030136,7]
[364367477,1749082250996,-1413.01,0.00030136,7]
[364367478,1749082251006,-420.0,0.00030136,7]
[364367479,1749082251016,-480.0,0.00030136,7]
[364367480,1749082251025,-480.0,0.00030136,7]
[364367481,1749082251035,-480.0,0.00030136,7]
[364367482,1749082251045,-480.0,0.00030136,7]
[364367483,1749082251055,-480.0,0.00030136,7]
[364367484,1749082251064,-460.0,0.00030136,7]
[364367485,1749082251074,-480.0,0.00030136,7]
[364367486,1749082251084,-480.0,0.00030136,7]
[364367487,1749082251094,-480.0,0.00030136,7]
[364367488,1749082251103,-420.0,0.00030136,7]
[364367489,1749082251113,-1072.65,0.00030136,7]
[364367490,1749082251123,-4912.01,0.00030136,7]
[364367491,1749082251133,-480.0,0.00030136,7]
[364367492,1749082251142,-480.0,0.00030136,7]
[364367493,1749082251152,-460.0,0.00030136,7]
[364367494,1749082251162,-480.0,0.00030136,7]
[364367495,1749082251171,-401.5661445,0.00030136,7]
[364367496,1749082251181,-5300.64,0.00030136,7]
[364367497,1749082251192,-2465.28,0.00030136,7]
[364367498,1749082251202,-480.0,0.00030136,7]
[364367499,1749082251211,-480.0,0.00030136,7]
[364367500,1749082251222,-486.82092782,0.00030136,7]
[364367501,1749082251231,-2089.28,0.00030136,7]
[364367502,1749082251241,-480.0,0.00030136,7]
[364367503,1749082251251,-1240.25,0.00030136,7]
[364367504,1749082251261,-1651.04,0.00030136,7]
[364367505,1749082251271,-480.0,0.00030136,7]
[364367506,1749082251281,-480.0,0.00030136,7]
[364367507,1749082251290,-480.0,0.00030136,7]
[364367508,1749082251300,-480.0,0.00030136,7]
[364367509,1749082251310,-1455.33,0.00030136,7]
[364367510,1749082251320,-2550.8,0.00030136,7]
[364367511,1749082251331,-817.29,0.00030136,7]
[364367512,1749082251340,-480.0,0.00030136,7]
[364367513,1749082251350,-12003.54,0.00030136,7]
[364367514,1749082251360,-366.31623214,0.00030136,7]
[364367515,1749082251370,-1514.6,0.00030136,7]
[364367516,1749082251381,-480.0,0.00030136,7]
[364367517,1749082251391,-480.0,0.00030136,7]
[364367518,1749082251401,-480.0,0.00030136,7]
[364367519,1749082251411,-2398.1,0.00030136,7]
[364367520,1749082251421,-480.0,0.00030136,7]
[364367521,1749082251431,-480.0,0.00030136,7]
[364367522,1749082251441,-480.0,0.00030136,7]
[364367523,1749082251451,-480.0,0.00030136,7]
[364367524,1749082251460,-744.98,0.00030136,7]
[364367525,1749082251470,-1042.73,0.00030136,7]
[364367526,1749082251480,-480.0,0.00030136,7]
[364367527,1749082251490,-480.0,0.00030136,7]
[364367528,1749082251500,-480.0,0.00030136,7]
[364367529,1749082251510,-1552.42,0.00030136,7]
[364367530,1749082251520,-480.0,0.00030136,7]
[364367531,1749082251530,-480.0,0.00030136,7]
[364367532,1749082251540,-480.0,0.00030136,7]
[364367533,1749082251550,-2325.39,0.00030136,7]
[364367534,1749082251560,-480.0,0.00030136,7]
[364367535,1749082251570,-5978.47,0.00030136,7]
[364367536,1749082251580,-3789.94,0.00030136,2]
[364367537,1749082251589,-480.0,0.00030136,7]
[364367538,1749082251600,-487.96,0.00030136,7]
[364367539,1749082251610,-7003.91,0.00030136,7]
[364367540,1749082251620,-480.0,0.00030136,7]
[364367541,1749082251633,-480.0,0.00030136,7]
[364367542,1749082251643,-977.77,0.00030136,7]
[364367543,1749082251653,-480.0,0.00030136,7]
[364367544,1749082251663,-480.0,0.00030136,7]
[364367545,1749082251672,-480.0,0.00030136,7]
[364367546,1749082251682,-950.51,0.00030136,7]
[364367547,1749082251692,-480.0,0.00030136,7]
[364367548,1749082251702,-480.0,0.00030136,7]
[364367549,1749082251712,-7156.39,0.00030136,7]
[364367550,1749082251722,-480.0,0.00030136,7]
[364367551,1749082251732,-2034.55,0.00030136,7]
[364367552,1749082251746,-1494.5,0.00030136,7]
[364367553,1749082251755,-422.61606773,0.00030136,7]
[364367554,1749082251765,-306.65622454,0.00030136,7]
[364367555,1749082251775,-1567.97,0.00030136,7]
[364367556,1749082251787,-480.0,0.00030136,7]
[364367557,1749082251797,-1374.9,0.00030136,7]
[364367558,1749082251807,-435.35736822,0.00030136,7]
[364367559,1749082251819,-422.88324008,0.00030136,7]
[364367560,1749082251829,-480.0,0.00030136,7]
[364367561,1749082251838,-480.0,0.00030136,7]
[364367562,1749082251848,-518.25,0.00030136,7]
[364367563,1749082251857,-480.0,0.00030136,7]
[364367564,1749082251867,-480.0,0.00030136,7]
[364367565,1749082251877,-1713.92,0.00030136,7]
[364367566,1749082251887,-315.32829092,0.00030136,7]
[364367567,1749082251896,-1667.33,0.00030136,7]
[364367568,1749082251906,-480.0,0.00030136,7]
[364367569,1749082251916,-414.19468826,0.00030136,7]
[364367570,1749082251926,-2015.96,0.00030136,7]
[364367571,1749082251936,-269.3687567,0.00030136,7]
[364367572,1749082251946,-480.0,0.00030136,7]
[364367573,1749082251956,-421.62911813,0.00030136,7]
[364367574,1749082251965,-1201.22,0.00030136,7]
[364367575,1749082251975,-936.87,0.00030136,7]
[364367576,1749082251984,-2869.61,0.00030136,7]
[364367577,1749082251996,-537.64374815,0.00030136,7]
[364367578,1749082252005,-480.0,0.00030136,7]
[364367579,1749082252015,-480.0,0.00030136,7]
[364367580,1749082252024,-1170.25,0.00030136,7]
[364367581,1749082252034,-1156.47,0.00030136,7]
[364367582,1749082252043,-480.0,0.00030136,7]
[364367583,1749082252052,-480.0,0.00030136,7]
[364367584,1749082252062,-500.0,0.00030136,7]
[364367585,1749082252071,-500.0,0.00030136,7]
[364367586,1749082252081,-333.21614494,0.00030136,7]
[364367587,1749082252090,-480.0,0.00030136,7]
[364367588,1749082252099,-480.0,0.00030136,7]
[364367589,1749082252109,-480.0,0.00030136,7]
[364367590,1749082252118,-480.0,0.00030136,7]
[364367591,1749082252127,-2306.36,0.00030136,7]
[364367592,1749082252137,-480.0,0.00030136,7]
[364367593,1749082252146,-1061.28,0.00030136,7]
[364367594,1749082252155,-480.0,0.00030136,7]
[364367595,1749082252165,-1716.51,0.00030136,7]
[364367596,1749082252175,-1692.64,0.00030136,7]
[364367597,1749082252185,-480.0,0.00030136,7]
[364367598,1749082252196,-7036.9,0.00030136,7]
[364367599,1749082252207,-480.0,0.00030136,7]
[364367600,1749082252217,-480.0,0.00030136,7]
[364367601,1749082252227,-480.0,0.00030136,7]
[364367602,1749082252237,-546.09,0.00030136,7]
[364367603,1749082252246,-480.0,0.00030136,7]
[364367604,1749082252256,-500.0,0.00030136,7]
[364367605,1749082252266,-480.0,0.00030136,7]
[364367606,1749082252276,-500.0,0.00030136,7]
[364367607,1749082252285,-500.0,0.00030136,7]
[364367608,1749082252295,-919.47,0.00030136,7]
[364367609,1749082252305,-462.24252532,0.00030136,7]
[364367610,1749082252315,-480.0,0.00030136,7]
[364367611,1749082252324,-480.0,0.00030136,7]
[364367612,1749082252334,-573.99,0.00030136,7]
[364367613,1749082252343,-167.1215855,0.00030136,7]
[364367614,1749082252354,-480.0,0.00030136,7]
[364367615,1749082252364,-480.0,0.00030136,7]
[364367616,1749082252374,-480.0,0.00030136,7]
[364367617,1749082252384,-10464.51,0.00030136,7]
[364367618,1749082252515,-480.0,0.00030136,7]
[364367619,1749082252534,-839.11,0.00030136,7]
[364367620,1749082252545,-480.0,0.00030136,7]
[364367621,1749082252554,-480.0,0.00030136,7]
[364367622,1749082252564,-480.0,0.00030136,7]
[364367623,1749082252574,-2121.58,0.00030136,7]
[364367624,1749082252583,-728.97,0.00030136,7]
[364367625,1749082252592,-402.25935218,0.00030136,7]
[364367626,1749082252602,-480.0,0.00030136,7]
[364367627,1749082252612,-480.0,0.00030136,7]
[364367628,1749082252621,-1210.03,0.00030136,7]
[364367629,1749082252631,-480.0,0.00030136,7]
[364367630,1749082252640,-480.0,0.00030136,7]
[364367631,1749082252650,-480.0,0.00030136,7]
[364367632,1749082252659,-480.0,0.00030136,7]
[364367633,1749082252669,-691.41,0.00030136,7]
[364367634,1749082252678,-480.0,0.00030136,7]
[364367635,1749082252691,-1019.05,0.00030136,7]
[364367636,1749082252703,-480.0,0.00030136,7]
[364367637,1749082252713,-480.0,0.00030136,5]
[364367638,1749082252722,-480.0,0.00030136,7]
[364367639,1749082252732,-1524.4,0.00030136,7]
[364367640,1749082252747,-480.0,0.00030136,7]
[364367641,1749082252761,-2587.6,0.00030136,7]
[364367642,1749082252771,-2587.6,0.00030136,7]
[364367643,1749082252781,-2587.6,0.00030136,7]
[364367644,1749082252791,-2587.6,0.00030136,7]
[364367645,1749082252800,-2587.6,0.00030136,7]